[Event "Titled Tuesday Blitz March 21 Late 2023"]
[White "Kaplan, Avi Harrison"]
[Black "Gatterer, Florian"]
[WhiteFideId "30934559"]
[BlackFideId "811688"]
[WhiteElo "1983"]
[BlackElo "2221"]
[Result "1-0"]
[Round "10"]
[TimeControl "180+2"]
[Date "2023.03.21"]
[WhiteClock "0:00:07"]
[BlackClock "0:00:01"]

1. e4 {[%clk 0:02:55]}  d6 {[%clk 0:02:59]} 2. d4 {[%clk 0:02:51]}  Nf6 {[%clk 0:02:59]} 3. Nc3 {[%clk 0:02:34]}  g6 {[%clk 0:02:59]} 4. Nge2 {[%clk 0:02:25]}  Bg7 {[%clk 0:02:57]} 5. f3 {[%clk 0:02:26]}  a6 {[%clk 0:02:55]} 6. a4 {[%clk 0:02:25]}  b6 {[%clk 0:02:55]} 7. Be3 {[%clk 0:02:25]}  Nbd7 {[%clk 0:02:42]} 8. Qd2 {[%clk 0:02:24]}  h5 {[%clk 0:02:41]} 9. g3 {[%clk 0:02:11]}  Bb7 {[%clk 0:02:36]} 10. Bg2 {[%clk 0:02:05]}  c5 {[%clk 0:02:36]} 11. O-O {[%clk 0:02:01]}  cxd4 {[%clk 0:02:35]} 12. Nxd4 {[%clk 0:01:59]}  Ne5 {[%clk 0:02:35]} 13. b3 {[%clk 0:01:57]}  Rc8 {[%clk 0:02:34]} 14. Rad1 {[%clk 0:01:55]}  Qc7 {[%clk 0:02:27]} 15. Nd5 {[%clk 0:01:36]}  Bxd5 {[%clk 0:02:16]} 16. exd5 {[%clk 0:01:37]}  Nxd5 {[%clk 0:02:11]} 17. Bf2 {[%clk 0:01:25]}  Nc3 {[%clk 0:02:00]} 18. Rde1 {[%clk 0:01:21]}  O-O {[%clk 0:02:00]} 19. f4 {[%clk 0:01:20]}  Ng4 {[%clk 0:01:55]} 20. Nc6 {[%clk 0:01:17]}  Rfe8 {[%clk 0:01:34]} 21. Bd4 {[%clk 0:01:13]}  Bxd4+ {[%clk 0:01:19]} 22. Qxd4 {[%clk 0:01:14]}  Na2 {[%clk 0:00:54]} 23. Ra1 {[%clk 0:00:54]}  e5 {[%clk 0:00:50]} 24. Qd3 {[%clk 0:00:35]}  e4 {[%clk 0:00:43]} 25. Bxe4 {[%clk 0:00:34]}  Nb4 {[%clk 0:00:31]} 26. Nxb4 {[%clk 0:00:26]}  Qc5+ {[%clk 0:00:31]} 27. Kh1 {[%clk 0:00:25]}  Qxb4 {[%clk 0:00:30]} 28. Bxg6 {[%clk 0:00:24]}  Re3 {[%clk 0:00:22]} 29. Qf5 {[%clk 0:00:18]}  Rc7 {[%clk 0:00:16]} 30. Bxh5 {[%clk 0:00:18]}  Nh6 {[%clk 0:00:01]} 31. Qg5+ {[%clk 0:00:18]}  Kh7 {[%clk 0:00:01]} 32. Bf3 {[%clk 0:00:13]}  Qd4 {[%clk 0:00:01]} 33. Rad1 {[%clk 0:00:12]}  Qg7 {[%clk 0:00:01]} 34. Rxd6 {[%clk 0:00:07]} 1-0


[Site "https://www.chess.com"]

[Event "Titled Tuesday Blitz March 21 Late 2023"]
[White "TigranHH"]
[Black "Bjelobrk, Igor"]
[BlackFideId "4300726"]
[WhiteElo "2316"]
[BlackElo "2335"]
[Result "0-1"]
[Round "10"]
[TimeControl "180+2"]
[Date "2023.03.21"]
[WhiteClock "0:01:07"]
[BlackClock "0:01:40"]

1. d4 {[%clk 0:03:00]}  e6 {[%clk 0:02:58]} 2. Nf3 {[%clk 0:03:01]}  c5 {[%clk 0:02:55]} 3. e3 {[%clk 0:02:48]}  Nf6 {[%clk 0:02:53]} 4. Nbd2 {[%clk 0:02:49]}  b6 {[%clk 0:02:52]} 5. Bd3 {[%clk 0:02:48]}  Bb7 {[%clk 0:02:52]} 6. O-O {[%clk 0:02:48]}  d6 {[%clk 0:02:44]} 7. b3 {[%clk 0:02:48]}  Nbd7 {[%clk 0:02:43]} 8. Bb2 {[%clk 0:02:48]}  Qc7 {[%clk 0:02:43]} 9. Qe2 {[%clk 0:02:45]}  a6 {[%clk 0:02:42]} 10. c4 {[%clk 0:02:39]}  Be7 {[%clk 0:02:40]} 11. a3 {[%clk 0:02:26]}  O-O {[%clk 0:02:38]} 12. b4 {[%clk 0:02:26]}  Rfe8 {[%clk 0:02:35]} 13. Rab1 {[%clk 0:02:15]}  Bf8 {[%clk 0:02:33]} 14. bxc5 {[%clk 0:01:49]}  bxc5 {[%clk 0:02:32]} 15. Bc3 {[%clk 0:01:45]}  Rab8 {[%clk 0:02:30]} 16. Nb3 {[%clk 0:01:44]}  cxd4 {[%clk 0:02:27]} 17. exd4 {[%clk 0:01:43]}  e5 {[%clk 0:02:26]} 18. Ba5 {[%clk 0:01:31]}  Qc8 {[%clk 0:02:25]} 19. Bf5 {[%clk 0:01:28]}  g6 {[%clk 0:02:21]} 20. Bh3 {[%clk 0:01:28]}  exd4 {[%clk 0:02:08]} 21. Qd3 {[%clk 0:01:26]}  Be4 {[%clk 0:02:05]} 22. Qxd4 {[%clk 0:01:24]}  Bxb1 {[%clk 0:02:04]} 23. Rxb1 {[%clk 0:01:25]}  Qc6 {[%clk 0:02:02]} 24. Bc3 {[%clk 0:01:14]}  Bg7 {[%clk 0:01:52]} 25. Bxd7 {[%clk 0:01:13]}  Qxd7 {[%clk 0:01:52]} 26. c5 {[%clk 0:01:13]}  Nh5 {[%clk 0:01:49]} 27. c6 {[%clk 0:01:12]}  Qc7 {[%clk 0:01:42]} 28. Qc4 {[%clk 0:01:07]}  Bxc3 {[%clk 0:01:42]} 29. Qxc3 {[%clk 0:01:08]}  Nf4 {[%clk 0:01:42]} 30. Nbd4 {[%clk 0:01:07]}  Rxb1+ {[%clk 0:01:40]} 0-1


[Site "https://www.chess.com"]

[Event "Titled Tuesday Blitz March 21 Late 2023"]
[White "Einarsson, Halldor Gretar"]
[Black "Romkachess"]
[WhiteFideId "2300150"]
[WhiteElo "2142"]
[BlackElo "2486"]
[Result "0-1"]
[Round "10"]
[TimeControl "180+2"]
[Date "2023.03.21"]
[WhiteClock "0:00:03"]
[BlackClock "0:00:20"]

1. d4 {[%clk 0:02:59]}  Nf6 {[%clk 0:02:59]} 2. c4 {[%clk 0:02:59]}  e6 {[%clk 0:02:59]} 3. g3 {[%clk 0:02:58]}  d5 {[%clk 0:02:58]} 4. Nf3 {[%clk 0:02:58]}  Be7 {[%clk 0:02:59]} 5. Bg2 {[%clk 0:02:58]}  O-O {[%clk 0:02:59]} 6. O-O {[%clk 0:02:58]}  Nbd7 {[%clk 0:03:00]} 7. Qc2 {[%clk 0:02:55]}  c6 {[%clk 0:03:00]} 8. Nbd2 {[%clk 0:02:49]}  b6 {[%clk 0:02:59]} 9. e4 {[%clk 0:02:47]}  dxc4 {[%clk 0:02:59]} 10. Nxc4 {[%clk 0:02:36]}  Bb7 {[%clk 0:02:58]} 11. Rd1 {[%clk 0:02:35]}  c5 {[%clk 0:02:58]} 12. d5 {[%clk 0:02:04]}  exd5 {[%clk 0:02:56]} 13. exd5 {[%clk 0:02:04]}  Bxd5 {[%clk 0:02:57]} 14. Nce5 {[%clk 0:01:41]}  Qc8 {[%clk 0:02:07]} 15. Nxd7 {[%clk 0:01:35]}  Qxd7 {[%clk 0:02:08]} 16. Ng5 {[%clk 0:01:31]}  g6 {[%clk 0:01:53]} 17. Ne4 {[%clk 0:00:49]}  Nxe4 {[%clk 0:01:37]} 18. Rxd5 {[%clk 0:00:18]}  Qxd5 {[%clk 0:01:36]} 19. Bxe4 {[%clk 0:00:18]}  Qe6 {[%clk 0:01:33]} 20. Bxa8 {[%clk 0:00:17]}  Rxa8 {[%clk 0:01:33]} 21. Bf4 {[%clk 0:00:16]}  Bf6 {[%clk 0:01:33]} 22. Rd1 {[%clk 0:00:13]}  Qxa2 {[%clk 0:01:25]} 23. Rd2 {[%clk 0:00:12]}  Re8 {[%clk 0:01:22]} 24. h4 {[%clk 0:00:12]}  Qe6 {[%clk 0:01:17]} 25. h5 {[%clk 0:00:12]}  Qh3 {[%clk 0:01:10]} 26. Re2 {[%clk 0:00:12]}  Rxe2 {[%clk 0:01:07]} 27. Qxe2 {[%clk 0:00:12]}  Qxh5 {[%clk 0:01:07]} 28. Qe8+ {[%clk 0:00:12]}  Kg7 {[%clk 0:01:08]} 29. Bd6 {[%clk 0:00:12]}  Bd4 {[%clk 0:00:50]} 30. Bf8+ {[%clk 0:00:09]}  Kf6 {[%clk 0:00:48]} 31. Qe7+ {[%clk 0:00:08]}  Kf5 {[%clk 0:00:45]} 32. Qxf7+ {[%clk 0:00:07]}  Ke4 {[%clk 0:00:33]} 33. Kg2 {[%clk 0:00:07]}  Qf5 {[%clk 0:00:26]} 34. Qb7+ {[%clk 0:00:07]}  Kd3 {[%clk 0:00:25]} 35. Qa6+ {[%clk 0:00:06]}  c4 {[%clk 0:00:24]} 36. b3 {[%clk 0:00:05]}  Qxf2+ {[%clk 0:00:24]} 37. Kh3 {[%clk 0:00:04]}  Qf1+ {[%clk 0:00:23]} 38. Kh4 {[%clk 0:00:03]}  Bf6+ {[%clk 0:00:20]} 39. Kg4 {[%clk 0:00:03]}  Qf5# {[%clk 0:00:20]} 0-1


[Site "https://www.chess.com"]

[Event "Titled Tuesday Blitz March 21 Late 2023"]
[White "Rose, Felix"]
[Black "Bogaudinov, Rushan"]
[WhiteFideId "5105722"]
[BlackFideId "4129288"]
[WhiteElo "2039"]
[BlackElo "1949"]
[Result "1-0"]
[Round "10"]
[TimeControl "180+2"]
[Date "2023.03.21"]
[WhiteClock "0:00:10"]
[BlackClock "0:00:01"]

1. e4 {[%clk 0:03:00]}  a6 {[%clk 0:02:58]} 2. d4 {[%clk 0:03:00]}  b5 {[%clk 0:02:59]} 3. Bd3 {[%clk 0:03:00]}  Bb7 {[%clk 0:02:59]} 4. a4 {[%clk 0:02:59]}  b4 {[%clk 0:02:56]} 5. a5 {[%clk 0:02:59]}  e6 {[%clk 0:02:55]} 6. Nf3 {[%clk 0:02:58]}  Nf6 {[%clk 0:02:55]} 7. Qe2 {[%clk 0:02:57]}  d5 {[%clk 0:02:55]} 8. Nbd2 {[%clk 0:02:56]}  c5 {[%clk 0:02:53]} 9. dxc5 {[%clk 0:02:44]}  Bxc5 {[%clk 0:02:50]} 10. e5 {[%clk 0:02:43]}  Nfd7 {[%clk 0:02:50]} 11. h4 {[%clk 0:02:41]}  Nc6 {[%clk 0:02:49]} 12. Nb3 {[%clk 0:02:35]}  Be7 {[%clk 0:02:44]} 13. Bg5 {[%clk 0:02:32]}  h6 {[%clk 0:02:38]} 14. Bxe7 {[%clk 0:02:32]}  Qxe7 {[%clk 0:02:37]} 15. h5 {[%clk 0:02:32]}  Nc5 {[%clk 0:02:36]} 16. Nbd4 {[%clk 0:02:15]}  Nxd3+ {[%clk 0:02:27]} 17. cxd3 {[%clk 0:02:13]}  O-O {[%clk 0:02:21]} 18. O-O {[%clk 0:02:03]}  Rfc8 {[%clk 0:02:18]} 19. Nxc6 {[%clk 0:02:01]}  Bxc6 {[%clk 0:02:18]} 20. Nd4 {[%clk 0:01:59]}  Bd7 {[%clk 0:02:13]} 21. f4 {[%clk 0:01:47]}  Qh4 {[%clk 0:01:54]} 22. Rf2 {[%clk 0:01:21]}  Rc7 {[%clk 0:01:52]} 23. Nc2 {[%clk 0:01:13]}  Rac8 {[%clk 0:01:41]} 24. Nxb4 {[%clk 0:01:11]}  Bb5 {[%clk 0:01:36]} 25. Qe3 {[%clk 0:00:54]}  Qxh5 {[%clk 0:01:34]} 26. g4 {[%clk 0:00:50]}  Qxg4+ {[%clk 0:01:28]} 27. Rg2 {[%clk 0:00:50]}  Qf5 {[%clk 0:01:28]} 28. Rf1 {[%clk 0:00:45]}  f6 {[%clk 0:01:19]} 29. exf6 {[%clk 0:00:41]}  Qxf6 {[%clk 0:01:18]} 30. f5 {[%clk 0:00:41]}  d4 {[%clk 0:01:08]} 31. Qxe6+ {[%clk 0:00:41]}  Qxe6 {[%clk 0:01:07]} 32. fxe6 {[%clk 0:00:42]}  Re7 {[%clk 0:01:04]} 33. Re2 {[%clk 0:00:38]}  Rce8 {[%clk 0:00:49]} 34. Rfe1 {[%clk 0:00:34]}  Rd8 {[%clk 0:00:49]} 35. Re4 {[%clk 0:00:29]}  g5 {[%clk 0:00:48]} 36. Kf2 {[%clk 0:00:27]}  Kg7 {[%clk 0:00:47]} 37. Kg3 {[%clk 0:00:26]}  Rd6 {[%clk 0:00:44]} 38. Re5 {[%clk 0:00:25]}  Kg6 {[%clk 0:00:40]} 39. Nd5 {[%clk 0:00:24]}  Re8 {[%clk 0:00:37]} 40. e7 {[%clk 0:00:22]}  h5 {[%clk 0:00:32]} 41. Nc7 {[%clk 0:00:19]}  h4+ {[%clk 0:00:32]} 42. Kh2 {[%clk 0:00:19]}  Rc8 {[%clk 0:00:27]} 43. e8=Q+ {[%clk 0:00:19]}  Bxe8 {[%clk 0:00:27]} 44. Nxe8 {[%clk 0:00:19]}  Rc2+ {[%clk 0:00:23]} 45. Kh1 {[%clk 0:00:19]}  Rxb2 {[%clk 0:00:21]} 46. Nxd6 {[%clk 0:00:19]}  g4 {[%clk 0:00:17]} 47. R5e4 {[%clk 0:00:17]}  Kg5 {[%clk 0:00:15]} 48. Rxd4 {[%clk 0:00:17]}  h3 {[%clk 0:00:14]} 49. Re5+ {[%clk 0:00:13]}  Kh4 {[%clk 0:00:14]} 50. Nf5+ {[%clk 0:00:10]}  Kg5 {[%clk 0:00:13]} 51. Ne3+ {[%clk 0:00:11]}  Kf6 {[%clk 0:00:11]} 52. Rf5+ {[%clk 0:00:11]}  Ke6 {[%clk 0:00:11]} 53. Re4+ {[%clk 0:00:11]}  Kd6 {[%clk 0:00:10]} 54. Nxg4 {[%clk 0:00:11]}  Rb1+ {[%clk 0:00:09]} 55. Kh2 {[%clk 0:00:12]}  Rb2+ {[%clk 0:00:08]} 56. Kxh3 {[%clk 0:00:12]}  Rd2 {[%clk 0:00:09]} 57. Rf6+ {[%clk 0:00:12]}  Kc5 {[%clk 0:00:09]} 58. Re5+ {[%clk 0:00:11]}  Kd4 {[%clk 0:00:09]} 59. Rd6+ {[%clk 0:00:12]}  Kc3 {[%clk 0:00:08]} 60. Rc5+ {[%clk 0:00:12]}  Kb4 {[%clk 0:00:08]} 61. Rc8 {[%clk 0:00:11]}  Kb5 {[%clk 0:00:08]} 62. Rb6+ {[%clk 0:00:11]}  Kxa5 {[%clk 0:00:08]} 63. Rb1 {[%clk 0:00:12]}  Ra2 {[%clk 0:00:08]} 64. Rc5+ {[%clk 0:00:11]}  Ka4 {[%clk 0:00:08]} 65. Rc4+ {[%clk 0:00:11]}  Ka5 {[%clk 0:00:08]} 66. Ne5 {[%clk 0:00:12]}  Rh2+ {[%clk 0:00:06]} 67. Kg3 {[%clk 0:00:12]}  Rh3+ {[%clk 0:00:07]} 68. Kf2 {[%clk 0:00:12]}  Rf3+ {[%clk 0:00:07]} 69. Ke2 {[%clk 0:00:12]}  Rf2+ {[%clk 0:00:07]} 70. Ke3 {[%clk 0:00:12]}  Rf3+ {[%clk 0:00:07]} 71. Kd4 {[%clk 0:00:13]}  Rxd3+ {[%clk 0:00:06]} 72. Kc5 {[%clk 0:00:12]}  Rd5+ {[%clk 0:00:06]} 73. Kc6 {[%clk 0:00:11]}  Rd6+ {[%clk 0:00:05]} 74. Kb7 {[%clk 0:00:11]}  Rb6+ {[%clk 0:00:01]} 75. Ka7 {[%clk 0:00:10]} 1-0


[Site "https://www.chess.com"]

[Event "Titled Tuesday Blitz March 21 Late 2023"]
[White "Hartikainen, Jarmo"]
[Black "Vifleemskaia, Svetlana"]
[WhiteFideId "503134"]
[BlackFideId "4129490"]
[WhiteElo "2189"]
[BlackElo "1930"]
[Result "0-1"]
[Round "10"]
[TimeControl "180+2"]
[Date "2023.03.21"]
[WhiteClock "0:00:04"]
[BlackClock "0:00:13"]

1. e4 {[%clk 0:03:00]}  e5 {[%clk 0:02:47]} 2. Nf3 {[%clk 0:02:59]}  Nc6 {[%clk 0:02:46]} 3. Bc4 {[%clk 0:02:59]}  Nf6 {[%clk 0:02:46]} 4. d3 {[%clk 0:02:54]}  h6 {[%clk 0:02:44]} 5. c3 {[%clk 0:02:53]}  d6 {[%clk 0:02:40]} 6. b4 {[%clk 0:02:52]}  g5 {[%clk 0:02:35]} 7. Qb3 {[%clk 0:02:48]}  Qe7 {[%clk 0:02:32]} 8. Be3 {[%clk 0:02:37]}  Bg7 {[%clk 0:02:30]} 9. Nbd2 {[%clk 0:02:23]}  Be6 {[%clk 0:02:18]} 10. a4 {[%clk 0:02:12]}  Nd8 {[%clk 0:02:17]} 11. a5 {[%clk 0:02:08]}  Nh5 {[%clk 0:02:09]} 12. g3 {[%clk 0:01:51]}  c6 {[%clk 0:02:00]} 13. a6 {[%clk 0:01:39]}  b5 {[%clk 0:01:53]} 14. Bxe6 {[%clk 0:01:36]}  Nxe6 {[%clk 0:01:53]} 15. d4 {[%clk 0:01:25]}  exd4 {[%clk 0:01:44]} 16. Nxd4 {[%clk 0:01:24]}  Nxd4 {[%clk 0:01:40]} 17. cxd4 {[%clk 0:01:16]}  O-O {[%clk 0:01:33]} 18. O-O {[%clk 0:01:09]}  Nf6 {[%clk 0:01:28]} 19. Qd3 {[%clk 0:01:03]}  Rfe8 {[%clk 0:01:20]} 20. f3 {[%clk 0:00:59]}  g4 {[%clk 0:01:10]} 21. Rae1 {[%clk 0:00:55]}  gxf3 {[%clk 0:01:02]} 22. Rxf3 {[%clk 0:00:55]}  Nxe4 {[%clk 0:00:57]} 23. Bxh6 {[%clk 0:00:54]}  Bxh6 {[%clk 0:00:17]} 24. Nxe4 {[%clk 0:00:43]}  Kh8 {[%clk 0:00:15]} 25. Rf6 {[%clk 0:00:25]}  Bg7 {[%clk 0:00:10]} 26. Qe3 {[%clk 0:00:21]}  Qxf6 {[%clk 0:00:05]} 27. Nxf6 {[%clk 0:00:20]}  Rxe3 {[%clk 0:00:05]} 28. Rxe3 {[%clk 0:00:20]}  Bxf6 {[%clk 0:00:06]} 29. Rf3 {[%clk 0:00:20]}  Bxd4+ {[%clk 0:00:06]} 30. Kg2 {[%clk 0:00:19]}  Kg7 {[%clk 0:00:06]} 31. h4 {[%clk 0:00:18]}  c5 {[%clk 0:00:07]} 32. bxc5 {[%clk 0:00:17]}  dxc5 {[%clk 0:00:08]} 33. Rf4 {[%clk 0:00:17]}  Re8 {[%clk 0:00:08]} 34. g4 {[%clk 0:00:17]}  b4 {[%clk 0:00:09]} 35. Rf3 {[%clk 0:00:16]}  Re3 {[%clk 0:00:08]} 36. Rf5 {[%clk 0:00:13]}  b3 {[%clk 0:00:08]} 37. Rf1 {[%clk 0:00:11]}  b2 {[%clk 0:00:08]} 38. Rb1 {[%clk 0:00:11]}  Ra3 {[%clk 0:00:09]} 39. g5 {[%clk 0:00:07]}  Ra1 {[%clk 0:00:10]} 40. Rxb2 {[%clk 0:00:07]}  Bxb2 {[%clk 0:00:10]} 41. h5 {[%clk 0:00:08]}  Rxa6 {[%clk 0:00:10]} 42. Kf3 {[%clk 0:00:08]}  c4 {[%clk 0:00:10]} 43. Ke4 {[%clk 0:00:08]}  c3 {[%clk 0:00:11]} 44. Kd3 {[%clk 0:00:08]}  Rc6 {[%clk 0:00:11]} 45. Kc2 {[%clk 0:00:08]}  a5 {[%clk 0:00:11]} 46. h6+ {[%clk 0:00:06]}  Kg6 {[%clk 0:00:11]} 47. h7 {[%clk 0:00:07]}  Kxh7 {[%clk 0:00:11]} 48. g6+ {[%clk 0:00:07]}  Kxg6 {[%clk 0:00:11]} 49. Kb3 {[%clk 0:00:05]}  f5 {[%clk 0:00:12]} 50. Kc2 {[%clk 0:00:04]}  f4 {[%clk 0:00:13]} 0-1


[Site "https://www.chess.com"]

[Event "Titled Tuesday Blitz March 21 Late 2023"]
[White "Vaglio Munoz, Jaime"]
[Black "Romero Ruscalleda, Josep"]
[WhiteFideId "6500145"]
[BlackFideId "2231859"]
[WhiteElo "2199"]
[BlackElo "2183"]
[Result "0-1"]
[Round "10"]
[TimeControl "180+2"]
[Date "2023.03.21"]
[WhiteClock "0:00:46"]
[BlackClock "0:00:53"]

1. Nf3 {[%clk 0:03:00]}  g6 {[%clk 0:02:57]} 2. b3 {[%clk 0:02:57]}  Bg7 {[%clk 0:02:57]} 3. d4 {[%clk 0:02:55]}  c5 {[%clk 0:02:56]} 4. Bb2 {[%clk 0:02:55]}  Nc6 {[%clk 0:02:56]} 5. e3 {[%clk 0:02:54]}  cxd4 {[%clk 0:02:55]} 6. exd4 {[%clk 0:02:53]}  d5 {[%clk 0:02:55]} 7. h3 {[%clk 0:02:46]}  Nf6 {[%clk 0:02:55]} 8. Bd3 {[%clk 0:02:43]}  O-O {[%clk 0:02:54]} 9. O-O {[%clk 0:02:44]}  Nb4 {[%clk 0:02:44]} 10. Be2 {[%clk 0:02:43]}  Bf5 {[%clk 0:02:44]} 11. Na3 {[%clk 0:02:43]}  Rc8 {[%clk 0:02:43]} 12. c3 {[%clk 0:02:43]}  Nc6 {[%clk 0:02:41]} 13. Re1 {[%clk 0:02:40]}  Ne4 {[%clk 0:02:36]} 14. Nc2 {[%clk 0:02:36]}  e5 {[%clk 0:02:13]} 15. Ne3 {[%clk 0:02:24]}  exd4 {[%clk 0:02:09]} 16. Nxf5 {[%clk 0:02:22]}  dxc3 {[%clk 0:02:06]} 17. Ba3 {[%clk 0:02:19]}  gxf5 {[%clk 0:02:02]} 18. Bxf8 {[%clk 0:02:18]}  Bxf8 {[%clk 0:01:51]} 19. a3 {[%clk 0:01:56]}  Bc5 {[%clk 0:01:45]} 20. Rf1 {[%clk 0:01:54]}  d4 {[%clk 0:01:23]} 21. Bd3 {[%clk 0:01:47]}  Qf6 {[%clk 0:01:23]} 22. b4 {[%clk 0:01:42]}  Bd6 {[%clk 0:01:15]} 23. Re1 {[%clk 0:01:40]}  Re8 {[%clk 0:01:14]} 24. Qc2 {[%clk 0:01:39]}  Ne5 {[%clk 0:01:03]} 25. Bxe4 {[%clk 0:01:33]}  fxe4 {[%clk 0:01:03]} 26. Qxe4 {[%clk 0:01:32]}  Nxf3+ {[%clk 0:01:01]} 27. Qxf3 {[%clk 0:01:32]}  Rxe1+ {[%clk 0:01:01]} 28. Rxe1 {[%clk 0:01:30]}  Qxf3 {[%clk 0:01:01]} 29. gxf3 {[%clk 0:01:30]}  d3 {[%clk 0:01:02]} 30. Kf1 {[%clk 0:01:03]}  c2 {[%clk 0:00:57]} 31. Re8+ {[%clk 0:00:59]}  Kg7 {[%clk 0:00:55]} 32. Rc8 {[%clk 0:01:00]}  Bf4 {[%clk 0:00:55]} 33. Ke1 {[%clk 0:00:47]}  d2+ {[%clk 0:00:53]} 34. Ke2 {[%clk 0:00:46]}  d1=Q# {[%clk 0:00:53]} 0-1


[Site "https://www.chess.com"]

[Event "Titled Tuesday Blitz March 21 Late 2023"]
[White "Szyszylo, Rafal"]
[Black "Gerbelli Neto, Eduardo"]
[WhiteFideId "1109626"]
[BlackFideId "2103281"]
[WhiteElo "1951"]
[BlackElo "2178"]
[Result "0-1"]
[Round "10"]
[TimeControl "180+2"]
[Date "2023.03.21"]
[WhiteClock "0:00:09"]
[BlackClock "0:00:41"]

1. e4 {[%clk 0:03:00]}  e5 {[%clk 0:02:59]} 2. d4 {[%clk 0:03:00]}  exd4 {[%clk 0:02:59]} 3. c3 {[%clk 0:03:01]}  dxc3 {[%clk 0:02:59]} 4. Bc4 {[%clk 0:03:01]}  Nc6 {[%clk 0:02:59]} 5. Nxc3 {[%clk 0:03:01]}  d6 {[%clk 0:02:59]} 6. Nf3 {[%clk 0:03:01]}  Nf6 {[%clk 0:02:59]} 7. Qb3 {[%clk 0:02:59]}  Qd7 {[%clk 0:03:00]} 8. Ng5 {[%clk 0:02:17]}  Ne5 {[%clk 0:02:59]} 9. Bb5 {[%clk 0:02:11]}  c6 {[%clk 0:02:59]} 10. f4 {[%clk 0:02:10]}  Neg4 {[%clk 0:02:54]} 11. Bc4 {[%clk 0:02:01]}  Nh6 {[%clk 0:02:12]} 12. O-O {[%clk 0:01:42]}  a6 {[%clk 0:02:12]} 13. e5 {[%clk 0:01:39]}  dxe5 {[%clk 0:02:09]} 14. fxe5 {[%clk 0:01:39]}  Bc5+ {[%clk 0:02:09]} 15. Kh1 {[%clk 0:01:39]}  Nd5 {[%clk 0:01:51]} 16. Nxd5 {[%clk 0:01:33]}  cxd5 {[%clk 0:01:52]} 17. Bxd5 {[%clk 0:01:33]}  O-O {[%clk 0:01:52]} 18. e6 {[%clk 0:01:19]}  Qb5 {[%clk 0:01:45]} 19. exf7+ {[%clk 0:01:15]}  Kh8 {[%clk 0:01:44]} 20. Bf4 {[%clk 0:00:40]}  Qxb3 {[%clk 0:01:34]} 21. axb3 {[%clk 0:00:41]}  a5 {[%clk 0:01:10]} 22. Ne4 {[%clk 0:00:41]}  Bb4 {[%clk 0:01:06]} 23. Rfc1 {[%clk 0:00:22]}  Nxf7 {[%clk 0:01:02]} 24. Bg3 {[%clk 0:00:15]}  h6 {[%clk 0:00:52]} 25. Rf1 {[%clk 0:00:14]}  Ng5 {[%clk 0:00:51]} 26. Rxf8+ {[%clk 0:00:14]}  Bxf8 {[%clk 0:00:52]} 27. Nxg5 {[%clk 0:00:13]}  hxg5 {[%clk 0:00:53]} 28. Rf1 {[%clk 0:00:09]}  Bc5 {[%clk 0:00:51]} 29. Rf7 {[%clk 0:00:09]}  Ra6 {[%clk 0:00:48]} 30. Be5 {[%clk 0:00:09]}  Be6 {[%clk 0:00:41]} 0-1


[Site "https://www.chess.com"]

[Event "Titled Tuesday Blitz March 21 Late 2023"]
[White "Kostiukov, Alexandr"]
[Black "lluiss"]
[WhiteFideId "14108100"]
[WhiteElo "2202"]
[BlackElo "2184"]
[Result "0-1"]
[Round "10"]
[TimeControl "180+2"]
[Date "2023.03.21"]
[WhiteClock "0:00:05"]
[BlackClock "0:00:16"]

1. e4 {[%clk 0:02:58]}  c5 {[%clk 0:02:59]} 2. Nf3 {[%clk 0:02:58]}  d6 {[%clk 0:02:59]} 3. d4 {[%clk 0:02:59]}  cxd4 {[%clk 0:02:59]} 4. Nxd4 {[%clk 0:02:59]}  Nf6 {[%clk 0:02:59]} 5. Nc3 {[%clk 0:03:00]}  g6 {[%clk 0:02:59]} 6. f3 {[%clk 0:02:57]}  Bg7 {[%clk 0:02:59]} 7. Be3 {[%clk 0:02:57]}  O-O {[%clk 0:03:00]} 8. Qd2 {[%clk 0:02:58]}  Nc6 {[%clk 0:03:00]} 9. O-O-O {[%clk 0:02:58]}  d5 {[%clk 0:02:59]} 10. Nxc6 {[%clk 0:02:36]}  bxc6 {[%clk 0:02:57]} 11. exd5 {[%clk 0:02:37]}  Nxd5 {[%clk 0:02:57]} 12. Nxd5 {[%clk 0:02:36]}  cxd5 {[%clk 0:02:57]} 13. Qxd5 {[%clk 0:02:20]}  Qc7 {[%clk 0:02:57]} 14. Qc5 {[%clk 0:02:14]}  Qb7 {[%clk 0:02:56]} 15. Bd4 {[%clk 0:02:13]}  Bf5 {[%clk 0:02:55]} 16. Bxg7 {[%clk 0:02:11]}  Rfc8 {[%clk 0:02:54]} 17. Qxc8+ {[%clk 0:01:52]}  Rxc8 {[%clk 0:02:52]} 18. Bc3 {[%clk 0:01:52]}  Qb6 {[%clk 0:02:36]} 19. Bd3 {[%clk 0:01:38]}  Be6 {[%clk 0:02:33]} 20. a3 {[%clk 0:01:28]}  a5 {[%clk 0:01:47]} 21. h4 {[%clk 0:01:24]}  a4 {[%clk 0:01:36]} 22. h5 {[%clk 0:01:18]}  Rxc3 {[%clk 0:01:24]} 23. bxc3 {[%clk 0:01:16]}  Kg7 {[%clk 0:01:24]} 24. h6+ {[%clk 0:01:11]}  Kf6 {[%clk 0:01:24]} 25. Rde1 {[%clk 0:01:00]}  Qc5 {[%clk 0:01:22]} 26. Kb2 {[%clk 0:00:31]}  Qd5 {[%clk 0:01:12]} 27. c4 {[%clk 0:00:30]}  Qd4+ {[%clk 0:01:11]} 28. Kc1 {[%clk 0:00:29]}  Bxc4 {[%clk 0:01:09]} 29. Bxc4 {[%clk 0:00:19]}  Qxc4 {[%clk 0:01:09]} 30. Re4 {[%clk 0:00:19]}  Qc3 {[%clk 0:01:01]} 31. Rhe1 {[%clk 0:00:17]}  Qxa3+ {[%clk 0:00:59]} 32. Kd2 {[%clk 0:00:17]}  e6 {[%clk 0:00:55]} 33. R1e3 {[%clk 0:00:15]}  Qd6+ {[%clk 0:00:43]} 34. Kc1 {[%clk 0:00:13]}  Qa6 {[%clk 0:00:41]} 35. Kb2 {[%clk 0:00:12]}  Qb5+ {[%clk 0:00:38]} 36. Ka2 {[%clk 0:00:10]}  Kg5 {[%clk 0:00:37]} 37. g4 {[%clk 0:00:06]}  Kxh6 {[%clk 0:00:36]} 38. f4 {[%clk 0:00:05]}  Kg7 {[%clk 0:00:35]} 39. g5 {[%clk 0:00:05]}  Qd5+ {[%clk 0:00:33]} 40. Ka3 {[%clk 0:00:05]}  Qc5+ {[%clk 0:00:33]} 41. Kxa4 {[%clk 0:00:05]}  Qxc2+ {[%clk 0:00:33]} 42. Kb4 {[%clk 0:00:06]}  Qb2+ {[%clk 0:00:32]} 43. Kc4 {[%clk 0:00:06]}  h5 {[%clk 0:00:30]} 44. gxh6+ {[%clk 0:00:05]}  Kxh6 {[%clk 0:00:31]} 45. Kc5 {[%clk 0:00:04]}  Kg7 {[%clk 0:00:31]} 46. Kd6 {[%clk 0:00:05]}  Qd2+ {[%clk 0:00:30]} 47. Ke7 {[%clk 0:00:05]}  Qa5 {[%clk 0:00:29]} 48. Re5 {[%clk 0:00:02]}  Qb4+ {[%clk 0:00:27]} 49. Ke8 {[%clk 0:00:01]}  Qxf4 {[%clk 0:00:27]} 50. Re1 {[%clk 0:00:02]}  Qa4+ {[%clk 0:00:26]} 51. Ke7 {[%clk 0:00:02]}  Qa7+ {[%clk 0:00:26]} 52. Kd6 {[%clk 0:00:02]}  Qb8+ {[%clk 0:00:26]} 53. Kc5 {[%clk 0:00:02]}  Qc7+ {[%clk 0:00:26]} 54. Kd4 {[%clk 0:00:02]}  Qd6+ {[%clk 0:00:25]} 55. Kc4 {[%clk 0:00:02]}  Qe7 {[%clk 0:00:20]} 56. R5e2 {[%clk 0:00:02]}  g5 {[%clk 0:00:19]} 57. Kd3 {[%clk 0:00:03]}  Kg6 {[%clk 0:00:18]} 58. Rg1 {[%clk 0:00:04]}  Qd6+ {[%clk 0:00:18]} 59. Kc2 {[%clk 0:00:03]}  f6 {[%clk 0:00:18]} 60. Reg2 {[%clk 0:00:03]}  e5 {[%clk 0:00:18]} 61. Rg4 {[%clk 0:00:01]}  Qc5+ {[%clk 0:00:18]} 62. Kd3 {[%clk 0:00:01]}  Qc8 {[%clk 0:00:17]} 63. Ke4 {[%clk 0:00:02]}  f5+ {[%clk 0:00:15]} 64. Kxe5 {[%clk 0:00:02]}  fxg4 {[%clk 0:00:15]} 65. Rd1 {[%clk 0:00:03]}  Qe8+ {[%clk 0:00:15]} 66. Kd4 {[%clk 0:00:02]}  Qd8+ {[%clk 0:00:15]} 67. Ke3 {[%clk 0:00:03]}  Qxd1 {[%clk 0:00:15]} 68. Kf2 {[%clk 0:00:04]}  Qf3+ {[%clk 0:00:15]} 69. Kg1 {[%clk 0:00:04]}  Qe2 {[%clk 0:00:16]} 70. Kh1 {[%clk 0:00:05]}  Kf5 {[%clk 0:00:16]} 0-1


[Site "https://www.chess.com"]